[Event "Early-Titled-Tuesday-Blitz-February-13-2024"]
[Site "Chess.com"]
[Date "2024.02.13"]
[Round "2"]
[White "bolwin"]
[Black "Nikolakis2014"]
[Result "0-1"]
[WhiteElo "2271"]
[BlackElo "2713"]
[TimeControl "180+1"]
[EndTime "8:19:01 PST"]
[Termination "Nikolakis2014 won on time"]

1. Nf3 {[%clk 0:03:00]} 1... Nf6 {[%clk 0:02:59.4]} 2. c4 {[%clk 0:03:00.9]}
2... e6 {[%clk 0:02:59]} 3. Nc3 {[%clk 0:03:01.5]} 3... Bb4 {[%clk 0:02:58.3]}
4. Qc2 {[%clk 0:03:01.4]} 4... c5 {[%clk 0:02:57.4]} 5. a3 {[%clk 0:03:01.2]}
5... Bxc3 {[%clk 0:02:57.7]} 6. Qxc3 {[%clk 0:03:01]} 6... d6 {[%clk 0:02:58.1]}
7. b4 {[%clk 0:03:00.5]} 7... O-O {[%clk 0:02:57.2]} 8. Bb2 {[%clk 0:03:00.4]}
8... e5 {[%clk 0:02:57.3]} 9. d3 {[%clk 0:02:59.6]} 9... b6 {[%clk 0:02:54]} 10.
g3 {[%clk 0:02:59.3]} 10... Bb7 {[%clk 0:02:49.3]} 11. Bg2 {[%clk 0:02:59.6]}
11... Nc6 {[%clk 0:02:49.5]} 12. O-O {[%clk 0:02:58.8]} 12... Nd4 {[%clk
0:02:49.2]} 13. Nxd4 {[%clk 0:02:50.5]} 13... exd4 {[%clk 0:02:48]} 14. Qc2
{[%clk 0:02:17.6]} 14... Bxg2 {[%clk 0:02:45.5]} 15. Kxg2 {[%clk 0:02:17.3]}
15... Re8 {[%clk 0:02:45.8]} 16. Rae1 {[%clk 0:02:08.9]} 16... d5 {[%clk
0:02:35.5]} 17. bxc5 {[%clk 0:01:49.5]} 17... bxc5 {[%clk 0:02:33.7]} 18. e3
{[%clk 0:01:46.6]} 18... dxc4 {[%clk 0:02:33.4]} 19. Qxc4 {[%clk 0:01:33.6]}
19... Rb8 {[%clk 0:02:31.8]} 20. Ba1 {[%clk 0:01:25]} 20... dxe3 {[%clk
0:02:22.6]} 21. fxe3 {[%clk 0:01:24.5]} 21... Qd5+ {[%clk 0:02:15.4]} 22. Qxd5
{[%clk 0:01:16]} 22... Nxd5 {[%clk 0:02:15.2]} 23. e4 {[%clk 0:01:13]} 23... Nc7
{[%clk 0:02:15]} 24. Rf5 {[%clk 0:01:05.8]} 24... Ne6 {[%clk 0:02:14.2]} 25.
Ref1 {[%clk 0:01:02.3]} 25... Re7 {[%clk 0:02:01.2]} 26. Rd5 {[%clk 0:00:49.1]}
26... h6 {[%clk 0:01:57.8]} 27. d4 {[%clk 0:00:22.7]} 27... cxd4 {[%clk
0:01:54.9]} 28. Bxd4 {[%clk 0:00:22.3]} 28... Rb3 {[%clk 0:01:50.2]} 29. Be5
{[%clk 0:00:17.4]} 29... Rxa3 {[%clk 0:01:43.7]} 30. Bd6 {[%clk 0:00:17]} 30...
Ra2+ {[%clk 0:01:43.6]} 31. Rf2 {[%clk 0:00:17.5]} 31... Rxf2+ {[%clk
0:01:41.3]} 32. Kxf2 {[%clk 0:00:18.4]} 32... Rb7 {[%clk 0:01:41.7]} 33. e5
{[%clk 0:00:18.5]} 33... h5 {[%clk 0:01:38.2]} 34. h4 {[%clk 0:00:17.2]} 34...
Kh7 {[%clk 0:01:38]} 35. Rd2 {[%clk 0:00:15.2]} 35... Kg6 {[%clk 0:01:37.5]} 36.
Rc2 {[%clk 0:00:15.2]} 36... Nd4 {[%clk 0:01:32.5]} 37. Rd2 {[%clk 0:00:11.7]}
37... Nf5 {[%clk 0:01:30]} 38. Rd3 {[%clk 0:00:06.4]} 38... Nh6 {[%clk
0:01:25.3]} 39. Kf3 {[%clk 0:00:04.7]} 39... Ng4 {[%clk 0:01:25.3]} 40. Ra3
{[%clk 0:00:02.4]} 40... Kf5 {[%clk 0:01:19.9]} 0-1

[Event "Early-Titled-Tuesday-Blitz-February-13-2024"]
[Site "Chess.com"]
[Date "2024.02.13"]
[Round "2"]
[White "Schachmalanders"]
[Black "SmirnovTimofey2000"]
[Result "1-0"]
[WhiteElo "2439"]
[BlackElo "1963"]
[TimeControl "180+1"]
[EndTime "8:19:01 PST"]
[Termination "Schachmalanders won on time"]

1. e4 {[%clk 0:03:00.9]} 1... e5 {[%clk 0:02:59.8]} 2. Nf3 {[%clk 0:03:00.6]}
2... Nf6 {[%clk 0:03:00.4]} 3. Nc3 {[%clk 0:02:59.6]} 3... Bb4 {[%clk
0:02:59.8]} 4. Nxe5 {[%clk 0:02:56.4]} 4... O-O {[%clk 0:02:58.3]} 5. d4 {[%clk
0:02:54.8]} 5... Nxe4 {[%clk 0:02:53.9]} 6. Qd3 {[%clk 0:02:54.5]} 6... d5
{[%clk 0:02:45.3]} 7. Be2 {[%clk 0:02:54.6]} 7... Bf5 {[%clk 0:02:29.9]} 8. Qf3
{[%clk 0:02:49.2]} 8... Bg6 {[%clk 0:02:20.8]} 9. O-O {[%clk 0:02:48.2]} 9...
Nxc3 {[%clk 0:02:19.4]} 10. bxc3 {[%clk 0:02:47.1]} 10... Bd6 {[%clk 0:02:19.3]}
11. Nxg6 {[%clk 0:02:44.4]} 11... hxg6 {[%clk 0:02:18]} 12. Rb1 {[%clk
0:02:40.7]} 12... b6 {[%clk 0:02:13.8]} 13. c4 {[%clk 0:02:35.8]} 13... c6
{[%clk 0:02:05.2]} 14. cxd5 {[%clk 0:02:29]} 14... cxd5 {[%clk 0:02:05.4]} 15.
c4 {[%clk 0:02:29.7]} 15... Nc6 {[%clk 0:01:46.5]} 16. Qxd5 {[%clk 0:02:27.5]}
16... Nxd4 {[%clk 0:01:37.5]} 17. Bd3 {[%clk 0:02:20.5]} 17... Bc5 {[%clk
0:01:30.9]} 18. Qe4 {[%clk 0:01:51.9]} 18... Re8 {[%clk 0:01:28.1]} 19. Qg4
{[%clk 0:01:52]} 19... Qf6 {[%clk 0:00:52.2]} 20. Bg5 {[%clk 0:01:48.5]} 20...
Qe6 {[%clk 0:00:46.4]} 21. Qh4 {[%clk 0:01:43.4]} 21... Nf5 {[%clk 0:00:42.4]}
22. Qh3 {[%clk 0:01:42.2]} 22... Be7 {[%clk 0:00:29.5]} 23. Bc1 {[%clk
0:01:32.1]} 23... Rad8 {[%clk 0:00:25.8]} 24. Bb2 {[%clk 0:01:28.7]} 24... Bf6
{[%clk 0:00:25.5]} 25. Bxf5 {[%clk 0:01:24.1]} 25... Qxf5 {[%clk 0:00:24.1]} 26.
Qxf5 {[%clk 0:01:23.8]} 26... gxf5 {[%clk 0:00:25]} 27. Bxf6 {[%clk 0:01:24.1]}
27... gxf6 {[%clk 0:00:25.9]} 28. Rfe1 {[%clk 0:01:20]} 28... Re4 {[%clk
0:00:19]} 29. Rxe4 {[%clk 0:01:16.4]} 29... fxe4 {[%clk 0:00:19.9]} 30. g3
{[%clk 0:01:15]} 30... Rd2 {[%clk 0:00:18]} 31. Rb5 {[%clk 0:00:58.4]} 31...
Rxa2 {[%clk 0:00:04.4]} 32. Rf5 {[%clk 0:00:58.3]} 32... Kg7 {[%clk 0:00:03.8]}
33. Rf4 {[%clk 0:00:58.5]} 33... a5 {[%clk 0:00:02.2]} 34. Rxe4 {[%clk
0:00:58.6]} 34... a4 {[%clk 0:00:02]} 35. Re7 {[%clk 0:00:57]} 35... a3 {[%clk
0:00:01.4]} 36. Ra7 {[%clk 0:00:57.5]} 1-0

[Event "Early-Titled-Tuesday-Blitz-February-13-2024"]
[Site "Chess.com"]
[Date "2024.02.13"]
[Round "2"]
[White "lupta_robin"]
[Black "regenda"]
[Result "1-0"]
[WhiteElo "2558"]
[BlackElo "2112"]
[TimeControl "180+1"]
[EndTime "8:19:02 PST"]
[Termination "lupta_robin won by resignation"]

1. b3 {[%clk 0:03:00.9]} 1... Nf6 {[%clk 0:02:55.3]} 2. Bb2 {[%clk 0:03:01.8]}
2... e6 {[%clk 0:02:55.5]} 3. Nf3 {[%clk 0:03:00.8]} 3... c5 {[%clk 0:02:54.9]}
4. c4 {[%clk 0:03:01.3]} 4... b6 {[%clk 0:02:55.1]} 5. g3 {[%clk 0:03:01.4]}
5... Bb7 {[%clk 0:02:55.6]} 6. Bg2 {[%clk 0:03:02.1]} 6... g6 {[%clk 0:02:55.9]}
7. O-O {[%clk 0:03:02.6]} 7... Bg7 {[%clk 0:02:56.5]} 8. d4 {[%clk 0:03:03.1]}
8... d6 {[%clk 0:02:55.5]} 9. Nc3 {[%clk 0:03:02.3]} 9... O-O {[%clk 0:02:55.1]}
10. Qd2 {[%clk 0:03:01.9]} 10... Nc6 {[%clk 0:02:54.6]} 11. Rad1 {[%clk
0:03:02.1]} 11... Qc8 {[%clk 0:02:48]} 12. d5 {[%clk 0:03:01.2]} 12... exd5
{[%clk 0:02:44.7]} 13. cxd5 {[%clk 0:03:02.1]} 13... Nb4 {[%clk 0:02:40.3]} 14.
e4 {[%clk 0:03:00.2]} 14... Re8 {[%clk 0:02:40.8]} 15. Rfe1 {[%clk 0:02:59.7]}
15... Ba6 {[%clk 0:02:39.9]} 16. Bf1 {[%clk 0:02:55.8]} 16... Bxf1 {[%clk
0:02:39.2]} 17. Kxf1 {[%clk 0:02:56]} 17... Nxa2 {[%clk 0:02:36.8]} 18. Nxa2
{[%clk 0:02:53.5]} 18... Qa6+ {[%clk 0:02:37]} 19. Qd3 {[%clk 0:01:59]} 19...
Qxa2 {[%clk 0:02:33.2]} 20. Re2 {[%clk 0:01:59.2]} 20... c4 {[%clk 0:01:59]} 21.
bxc4 {[%clk 0:01:34.2]} 21... Qa4 {[%clk 0:01:39.2]} 22. Ra1 {[%clk 0:01:26]}
22... Qd7 {[%clk 0:01:39.1]} 23. e5 {[%clk 0:01:24.5]} 23... Ng4 {[%clk
0:01:30.3]} 24. e6 {[%clk 0:01:12.3]} 24... fxe6 {[%clk 0:01:25.2]} 25. dxe6
{[%clk 0:01:13.2]} 25... Rxe6 {[%clk 0:01:09]} 26. Qd5 {[%clk 0:01:12.9]} 26...
Re8 {[%clk 0:01:09.1]} 27. Rae1 {[%clk 0:01:11.8]} 27... Bxb2 {[%clk 0:00:24.7]}
28. Rxe6 {[%clk 0:01:08.9]} 28... Rxe6 {[%clk 0:00:25.6]} 29. Rxe6 {[%clk
0:00:51.3]} 29... Kg7 {[%clk 0:00:21.5]} 30. Rxd6 {[%clk 0:00:45.8]} 30... Qf5
{[%clk 0:00:16.3]} 31. Qxf5 {[%clk 0:00:45.5]} 31... gxf5 {[%clk 0:00:16.5]} 32.
Rd7+ {[%clk 0:00:46.4]} 32... Kf6 {[%clk 0:00:15.6]} 33. Rxa7 {[%clk 0:00:47.3]}
33... Ne5 {[%clk 0:00:12.6]} 34. Nxe5 {[%clk 0:00:46.7]} 34... Bxe5 {[%clk
0:00:12.3]} 35. Rxh7 {[%clk 0:00:47.3]} 1-0

[Event "Early-Titled-Tuesday-Blitz-February-13-2024"]
[Site "Chess.com"]
[Date "2024.02.13"]
[Round "2"]
[White "maksimys18"]
[Black "Teidi96"]
[Result "1-0"]
[WhiteElo "2536"]
[BlackElo "2298"]
[TimeControl "180+1"]
[EndTime "8:19:02 PST"]
[Termination "maksimys18 won on time"]

1. d4 {[%clk 0:03:00.6]} 1... Nf6 {[%clk 0:02:59.8]} 2. Nf3 {[%clk 0:03:01.5]}
2... e6 {[%clk 0:03:00.3]} 3. c4 {[%clk 0:03:01.1]} 3... d5 {[%clk 0:03:01]} 4.
Nc3 {[%clk 0:02:58]} 4... Be7 {[%clk 0:03:00.7]} 5. Bg5 {[%clk 0:02:57.4]} 5...
O-O {[%clk 0:03:01.2]} 6. e3 {[%clk 0:02:55.5]} 6... Nbd7 {[%clk 0:03:01.5]} 7.
cxd5 {[%clk 0:02:52.6]} 7... exd5 {[%clk 0:03:02.4]} 8. Bd3 {[%clk 0:02:51.7]}
8... c6 {[%clk 0:03:02.9]} 9. O-O {[%clk 0:02:49.6]} 9... Re8 {[%clk 0:03:03.4]}
10. Rc1 {[%clk 0:02:49]} 10... h6 {[%clk 0:03:03.4]} 11. Bf4 {[%clk 0:02:48.5]}
11... a5 {[%clk 0:03:01.6]} 12. h3 {[%clk 0:02:45.5]} 12... Nf8 {[%clk
0:03:00.5]} 13. Ne5 {[%clk 0:02:43.9]} 13... Bd6 {[%clk 0:02:57]} 14. Bh2 {[%clk
0:02:39.3]} 14... Bxe5 {[%clk 0:02:48.2]} 15. Bxe5 {[%clk 0:02:37.3]} 15... Be6
{[%clk 0:02:29.9]} 16. f4 {[%clk 0:02:35.5]} 16... Bc8 {[%clk 0:02:10.8]} 17.
Bb1 {[%clk 0:02:33.8]} 17... N6d7 {[%clk 0:02:05.5]} 18. Qd3 {[%clk 0:02:29.7]}
18... Nb6 {[%clk 0:02:00.7]} 19. f5 {[%clk 0:02:23.3]} 19... f6 {[%clk
0:01:59.1]} 20. Bf4 {[%clk 0:02:20.7]} 20... Nh7 {[%clk 0:01:55.9]} 21. Rf3
{[%clk 0:02:18.2]} 21... Nc4 {[%clk 0:01:51.6]} 22. b3 {[%clk 0:02:15.2]} 22...
Nd6 {[%clk 0:01:51.6]} 23. g4 {[%clk 0:02:12.4]} 23... Ng5 {[%clk 0:01:50.7]}
24. Rg3 {[%clk 0:02:08.6]} 24... Nge4 {[%clk 0:01:50.7]} 25. Rg2 {[%clk
0:02:04.1]} 25... Nxc3 {[%clk 0:01:48]} 26. Qxc3 {[%clk 0:02:02]} 26... Ne4
{[%clk 0:01:47.9]} 27. Bxe4 {[%clk 0:01:59.9]} 27... Rxe4 {[%clk 0:01:47.2]} 28.
Rf1 {[%clk 0:01:50.4]} 28... Qe7 {[%clk 0:01:46.4]} 29. h4 {[%clk 0:01:49.6]}
29... a4 {[%clk 0:01:41.5]} 30. g5 {[%clk 0:01:48.3]} 30... Bxf5 {[%clk
0:01:30.8]} 31. gxh6 {[%clk 0:01:45.7]} 31... g6 {[%clk 0:01:27.7]} 32. Rf3
{[%clk 0:01:34.6]} 32... axb3 {[%clk 0:01:21.6]} 33. axb3 {[%clk 0:01:33]} 33...
Kh7 {[%clk 0:01:21.3]} 34. Rfg3 {[%clk 0:01:31.9]} 34... Qa3 {[%clk 0:01:06.2]}
35. Kh2 {[%clk 0:01:28.9]} 35... Qe7 {[%clk 0:00:40.3]} 36. Qc1 {[%clk 0:01:22]}
36... Qa3 {[%clk 0:00:27.7]} 37. Qg1 {[%clk 0:01:20.7]} 37... Rg8 {[%clk
0:00:05.4]} 38. Qf2 {[%clk 0:01:17]} 38... Qxb3 {[%clk 0:00:05.1]} 39. h5 {[%clk
0:01:16.3]} 39... g5 {[%clk 0:00:04.7]} 40. Bxg5 {[%clk 0:01:15.6]} 40... Rh4+
{[%clk 0:00:02.5]} 41. Bxh4 {[%clk 0:01:15.1]} 1-0

[Event "Early-Titled-Tuesday-Blitz-February-13-2024"]
[Site "Chess.com"]
[Date "2024.02.13"]
[Round "2"]
[White "JaackCamel"]
[Black "LionelMessiFCB"]
[Result "0-1"]
[WhiteElo "2211"]
[BlackElo "2494"]
[TimeControl "180+1"]
[EndTime "8:19:03 PST"]
[Termination "LionelMessiFCB won by resignation"]

1. d4 {[%clk 0:03:00.9]} 1... d5 {[%clk 0:02:58.9]} 2. c4 {[%clk 0:03:00.4]}
2... dxc4 {[%clk 0:02:59.8]} 3. Nf3 {[%clk 0:02:58.5]} 3... Nf6 {[%clk
0:02:54.7]} 4. e3 {[%clk 0:02:56.2]} 4... e6 {[%clk 0:02:54.8]} 5. Bxc4 {[%clk
0:02:55.5]} 5... c5 {[%clk 0:02:55.1]} 6. O-O {[%clk 0:02:54.6]} 6... a6 {[%clk
0:02:54.8]} 7. a4 {[%clk 0:02:44.7]} 7... Nc6 {[%clk 0:02:52.8]} 8. Nc3 {[%clk
0:02:43.4]} 8... Be7 {[%clk 0:02:51.9]} 9. Qe2 {[%clk 0:02:36.6]} 9... cxd4
{[%clk 0:02:50.3]} 10. Rd1 {[%clk 0:02:35.8]} 10... Qc7 {[%clk 0:02:37.3]} 11.
exd4 {[%clk 0:02:33.3]} 11... O-O {[%clk 0:02:35]} 12. Bg5 {[%clk 0:02:28.4]}
12... h6 {[%clk 0:02:30]} 13. Bh4 {[%clk 0:02:27.8]} 13... Nb4 {[%clk
0:02:23.2]} 14. Bg3 {[%clk 0:02:16.6]} 14... Qb6 {[%clk 0:02:22.3]} 15. a5
{[%clk 0:02:12.6]} 15... Qd8 {[%clk 0:02:18.8]} 16. Ne5 {[%clk 0:02:04.5]} 16...
Bd7 {[%clk 0:02:17]} 17. h3 {[%clk 0:01:43.9]} 17... Bc6 {[%clk 0:02:13.7]} 18.
Nxc6 {[%clk 0:01:42]} 18... Nxc6 {[%clk 0:02:13.1]} 19. d5 {[%clk 0:01:38.3]}
19... exd5 {[%clk 0:02:01.2]} 20. Nxd5 {[%clk 0:01:35.5]} 20... Nxd5 {[%clk
0:01:58.9]} 21. Bxd5 {[%clk 0:01:31.7]} 21... Qe8 {[%clk 0:01:38.5]} 22. Bxc6
{[%clk 0:01:13.3]} 22... bxc6 {[%clk 0:01:39.4]} 23. Re1 {[%clk 0:01:12.5]}
23... Bf6 {[%clk 0:01:38.6]} 24. Qc4 {[%clk 0:00:58.5]} 24... Qd7 {[%clk
0:01:35]} 25. Rad1 {[%clk 0:00:55.3]} 25... Qb7 {[%clk 0:01:34.3]} 26. b4 {[%clk
0:00:51.8]} 26... Rfc8 {[%clk 0:01:29.3]} 27. Bd6 {[%clk 0:00:51.1]} 27... Rd8
{[%clk 0:01:24.3]} 28. Bc5 {[%clk 0:00:50.6]} 28... Rxd1 {[%clk 0:01:22.6]} 29.
Rxd1 {[%clk 0:00:50.4]} 29... Re8 {[%clk 0:01:23.3]} 30. Qb3 {[%clk 0:00:35.7]}
30... Qb5 {[%clk 0:01:21.4]} 31. Qd3 {[%clk 0:00:30.9]} 31... Rd8 {[%clk
0:01:14.8]} 32. Qc2 {[%clk 0:00:28.9]} 32... Rd5 {[%clk 0:00:49.9]} 33. Qb3
{[%clk 0:00:21.6]} 33... Rxc5 {[%clk 0:00:45.3]} 34. Qb1 {[%clk 0:00:17]} 34...
Rd5 {[%clk 0:00:44.3]} 0-1

[Event "Early-Titled-Tuesday-Blitz-February-13-2024"]
[Site "Chess.com"]
[Date "2024.02.13"]
[Round "2"]
[White "Aslanov_Umid"]
[Black "PoXerStar"]
[Result "1-0"]
[WhiteElo "2668"]
[BlackElo "2399"]
[TimeControl "180+1"]
[EndTime "8:19:08 PST"]
[Termination "Aslanov_Umid won on time"]

1. e4 {[%clk 0:03:00.9]} 1... c5 {[%clk 0:03:00.1]} 2. Nf3 {[%clk 0:03:01.3]}
2... d6 {[%clk 0:03:00.5]} 3. d4 {[%clk 0:03:02]} 3... cxd4 {[%clk 0:03:01.4]}
4. Qxd4 {[%clk 0:03:02.6]} 4... Nc6 {[%clk 0:03:00.8]} 5. Qe3 {[%clk 0:03:03.2]}
5... g6 {[%clk 0:02:57.2]} 6. c4 {[%clk 0:03:02.4]} 6... Bg7 {[%clk 0:02:57.3]}
7. Be2 {[%clk 0:03:03]} 7... Nf6 {[%clk 0:02:55.3]} 8. O-O {[%clk 0:03:03.6]}
8... O-O {[%clk 0:02:54]} 9. h3 {[%clk 0:03:03.9]} 9... b6 {[%clk 0:02:53.2]}
10. Nc3 {[%clk 0:03:01]} 10... Bb7 {[%clk 0:02:53.1]} 11. Rb1 {[%clk 0:02:57.2]}
11... Nd7 {[%clk 0:02:52.2]} 12. b3 {[%clk 0:02:55.4]} 12... Nc5 {[%clk
0:02:24.2]} 13. Bb2 {[%clk 0:02:51.8]} 13... f5 {[%clk 0:02:24.5]} 14. exf5
{[%clk 0:02:42.7]} 14... gxf5 {[%clk 0:02:24]} 15. Rfd1 {[%clk 0:02:29]} 15...
Qd7 {[%clk 0:01:40.4]} 16. Nb5 {[%clk 0:01:51.7]} 16... a6 {[%clk 0:01:33.9]}
17. Bxg7 {[%clk 0:01:50.9]} 17... Kxg7 {[%clk 0:01:34.5]} 18. Nc3 {[%clk
0:01:44]} 18... Rab8 {[%clk 0:00:34]} 19. Nd5 {[%clk 0:01:42.7]} 19... Ba8
{[%clk 0:00:33.8]} 20. b4 {[%clk 0:01:25.4]} 20... Ne4 {[%clk 0:00:34]} 21. Nxb6
{[%clk 0:01:19.9]} 21... Qe8 {[%clk 0:00:12.1]} 22. Nxa8 {[%clk 0:01:15.9]}
22... Rxa8 {[%clk 0:00:10.4]} 23. Ng5 {[%clk 0:01:12.3]} 23... Qg6 {[%clk
0:00:06.3]} 24. Nxe4 {[%clk 0:01:00.6]} 24... fxe4 {[%clk 0:00:07.2]} 25. c5
{[%clk 0:00:57]} 25... Rfd8 {[%clk 0:00:03.6]} 26. cxd6 {[%clk 0:00:56.3]} 26...
exd6 {[%clk 0:00:04.5]} 27. a4 {[%clk 0:00:53.2]} 27... d5 {[%clk 0:00:03.7]}
28. b5 {[%clk 0:00:51.1]} 28... d4 {[%clk 0:00:03.9]} 29. Qa3 {[%clk 0:00:46.8]}
29... Ne5 {[%clk 0:00:01.1]} 30. Qc5 {[%clk 0:00:41.1]} 1-0

[Event "Early-Titled-Tuesday-Blitz-February-13-2024"]
[Site "Chess.com"]
[Date "2024.02.13"]
[Round "2"]
[White "Kunalm64"]
[Black "FMOlexandrProhorov"]
[Result "1-0"]
[WhiteElo "2539"]
[BlackElo "2316"]
[TimeControl "180+1"]
[EndTime "8:19:08 PST"]
[Termination "Kunalm64 won by resignation"]

1. e4 {[%clk 0:03:00.9]} 1... c5 {[%clk 0:02:59.6]} 2. Nf3 {[%clk 0:03:00]} 2...
e6 {[%clk 0:02:59.7]} 3. g3 {[%clk 0:02:59.1]} 3... Nc6 {[%clk 0:02:58.6]} 4.
Bg2 {[%clk 0:02:58.6]} 4... g6 {[%clk 0:02:59.1]} 5. d4 {[%clk 0:02:58.1]} 5...
cxd4 {[%clk 0:02:58.1]} 6. Nxd4 {[%clk 0:02:58]} 6... Qb6 {[%clk 0:02:57]} 7.
Nb3 {[%clk 0:02:45.8]} 7... Bg7 {[%clk 0:02:56.3]} 8. O-O {[%clk 0:02:45]} 8...
Nge7 {[%clk 0:02:55.9]} 9. Nc3 {[%clk 0:02:34.1]} 9... a6 {[%clk 0:02:51.1]} 10.
Be3 {[%clk 0:02:29.4]} 10... Qc7 {[%clk 0:02:50.4]} 11. Qd2 {[%clk 0:02:28.6]}
11... O-O {[%clk 0:02:49.6]} 12. Bh6 {[%clk 0:02:27.1]} 12... b5 {[%clk
0:02:42.7]} 13. a3 {[%clk 0:02:21.7]} 13... Bb7 {[%clk 0:02:41.8]} 14. Rad1
{[%clk 0:02:18.7]} 14... Rfd8 {[%clk 0:02:39.4]} 15. Bxg7 {[%clk 0:02:16.7]}
15... Kxg7 {[%clk 0:02:39.2]} 16. Nc5 {[%clk 0:02:14.6]} 16... d6 {[%clk
0:02:33.9]} 17. Nxb7 {[%clk 0:02:12.2]} 17... Qxb7 {[%clk 0:02:33.6]} 18. h4
{[%clk 0:02:12.3]} 18... h5 {[%clk 0:02:32.2]} 19. Qg5 {[%clk 0:02:10.5]} 19...
Ng8 {[%clk 0:02:26.9]} 20. Rd2 {[%clk 0:02:03]} 20... b4 {[%clk 0:02:01.8]} 21.
axb4 {[%clk 0:01:47.2]} 21... Qxb4 {[%clk 0:02:01]} 22. Nd1 {[%clk 0:01:33.1]}
22... Ne5 {[%clk 0:01:43.8]} 23. c3 {[%clk 0:01:28.6]} 23... Qb6 {[%clk
0:01:43.4]} 24. Ne3 {[%clk 0:01:23.4]} 24... Rab8 {[%clk 0:01:33.1]} 25. Rfd1
{[%clk 0:01:20.2]} 25... f6 {[%clk 0:01:26.9]} 26. Qf4 {[%clk 0:01:17.1]} 26...
Nh6 {[%clk 0:01:26.5]} 27. Bh3 {[%clk 0:01:09.3]} 27... Re8 {[%clk 0:00:30.9]}
28. Rxd6 {[%clk 0:01:03.7]} 28... Qxb2 {[%clk 0:00:30.6]} 29. Rxa6 {[%clk
0:00:53.9]} 29... Re7 {[%clk 0:00:27]} 30. Bxe6 {[%clk 0:00:46.3]} 30... Qxc3
{[%clk 0:00:25.8]} 31. Nd5 {[%clk 0:00:41.7]} 31... Nf3+ {[%clk 0:00:20.3]} 32.
Kg2 {[%clk 0:00:41.4]} 32... Ne1+ {[%clk 0:00:19.6]} 33. Rxe1 {[%clk 0:00:41]}
33... Qxe1 {[%clk 0:00:18.8]} 34. Qxf6+ {[%clk 0:00:40.4]} 1-0

[Event "Early-Titled-Tuesday-Blitz-February-13-2024"]
[Site "Chess.com"]
[Date "2024.02.13"]
[Round "2"]
[White "IMRosen"]
[Black "FairChess_on_YouTube"]
[Result "0-1"]
[WhiteElo "2686"]
[BlackElo "3080"]
[TimeControl "180+1"]
[EndTime "8:19:09 PST"]
[Termination "FairChess_on_YouTube won on time"]

1. e4 {[%clk 0:03:00.9]} 1... e5 {[%clk 0:02:58]} 2. Nf3 {[%clk 0:03:01.1]} 2...
Nf6 {[%clk 0:02:56]} 3. Nc3 {[%clk 0:02:59.4]} 3... Nc6 {[%clk 0:02:55.6]} 4. d4
{[%clk 0:02:59.5]} 4... exd4 {[%clk 0:02:55.4]} 5. Nxd4 {[%clk 0:03:00.4]} 5...
Nxe4 {[%clk 0:02:55.2]} 6. Nxe4 {[%clk 0:03:00.2]} 6... Qe7 {[%clk 0:02:55.3]}
7. Qd3 {[%clk 0:03:00.8]} 7... d5 {[%clk 0:02:46]} 8. Nb5 {[%clk 0:03:00.7]}
8... a6 {[%clk 0:02:16.9]} 9. Nxc7+ {[%clk 0:02:31.6]} 9... Qxc7 {[%clk
0:02:16.6]} 10. Qxd5 {[%clk 0:02:32.3]} 10... Nb4 {[%clk 0:02:08.4]} 11. Qc4
{[%clk 0:00:45.4]} 11... Nxc2+ {[%clk 0:02:03.6]} 12. Kd1 {[%clk 0:00:45.6]}
12... Qxc4 {[%clk 0:01:59.8]} 13. Bxc4 {[%clk 0:00:46.5]} 13... Nxa1 {[%clk
0:01:59.9]} 14. Re1 {[%clk 0:00:47.1]} 14... Be6 {[%clk 0:01:57]} 15. Bxe6
{[%clk 0:00:28]} 15... fxe6 {[%clk 0:01:56.4]} 16. Bd2 {[%clk 0:00:28.9]} 16...
Be7 {[%clk 0:01:36.9]} 17. Bc3 {[%clk 0:00:27.2]} 17... Rc8 {[%clk 0:01:31.2]}
18. Kd2 {[%clk 0:00:20.3]} 18... Rd8+ {[%clk 0:01:15.1]} 19. Kc1 {[%clk
0:00:17.1]} 19... Kf7 {[%clk 0:01:13.9]} 20. Kb1 {[%clk 0:00:17.4]} 20... Rd5
{[%clk 0:01:14.1]} 21. Kxa1 {[%clk 0:00:09.7]} 21... Rhd8 {[%clk 0:01:14.7]} 22.
Kb1 {[%clk 0:00:10.4]} 22... Rd1+ {[%clk 0:01:12.7]} 23. Kc2 {[%clk 0:00:09.9]}
23... Rxe1 {[%clk 0:01:12.3]} 24. Bxe1 {[%clk 0:00:10.8]} 24... Bf6 {[%clk
0:01:05.8]} 25. f3 {[%clk 0:00:09.9]} 25... Be5 {[%clk 0:01:05.9]} 26. h3 {[%clk
0:00:09.9]} 26... h6 {[%clk 0:01:05.8]} 27. Bf2 {[%clk 0:00:10.3]} 27... Bd4
{[%clk 0:01:04.1]} 28. Be1 {[%clk 0:00:10.4]} 28... e5 {[%clk 0:01:03.7]} 29. b3
{[%clk 0:00:09]} 29... Ke6 {[%clk 0:01:03.7]} 30. Bd2 {[%clk 0:00:08.6]} 30...
Rc8+ {[%clk 0:01:02.7]} 31. Kd3 {[%clk 0:00:08.6]} 31... Kd5 {[%clk 0:01:03]}
32. a4 {[%clk 0:00:07.8]} 32... b5 {[%clk 0:01:01]} 33. axb5 {[%clk 0:00:05.3]}
33... axb5 {[%clk 0:01:01.9]} 34. Ng3 {[%clk 0:00:05.9]} 34... Ke6 {[%clk
0:00:57.2]} 35. Ne4 {[%clk 0:00:06]} 35... Ra8 {[%clk 0:00:57.3]} 36. f4 {[%clk
0:00:03.1]} 36... Ra3 {[%clk 0:00:55.3]} 37. fxe5 {[%clk 0:00:02.8]} 37... Kxe5
{[%clk 0:00:53.8]} 0-1